bitfinex-derivatives/quotes_ETHF0:USTF0_20250101
["timestamp","ask_amount","ask_price","bid_price","bid_amount"]
[1735695388379,5.54800544,3357.4,3357.3,0.29848]
[1735695392182,6.72225229,3357.4,3357.3,0.29848]
[1735695395970,3.2078,3357.4,3357.3,0.29848]
[1735695398680,4.69094532,3357.6,3357.2,3.2078]
[1735695398894,3.51305877,3357.4,3357.3,0.29847]
[1735695400185,2.3420232,3357.8,3357.2,3.2078]
[1735695400383,2.3420232,3357.8,3357.7,0.29844]
[1735695403182,3.2078,3358.0,3357.6,4.0734]
[1735695403378,3.2078,3358.0,3357.9,0.29842]
[1735695406274,0.9436232,3358.1,3358.0,0.29841]
[1735695406486,4.69094532,3358.4,3358.3,0.29839]
[1735695406779,6.99983152,3358.7,3358.6,0.29836]
[1735695406985,7.45933152,3358.7,3358.6,0.29836]
[1735695407980,0.4595,3358.7,3358.6,0.29836]
[1735695410693,0.75785,3358.7,3358.5,0.29836]
[1735695410986,0.4595,3358.7,3358.0,3.2078]
[1735695411285,3.2078,3358.4,3358.3,0.29839]
[1735695425094,0.75786,3358.7,3358.5,0.29836]
[1735695425294,3.2078,3358.6,3358.5,0.29836]
[1735695426905,3.50616,3358.6,3358.5,0.29836]
[1735695427295,3.2078,3358.6,3358.5,0.29836]
[1735695431395,7.88833523,3358.6,3358.5,0.29836]
[1735695431904,8.18669523,3358.6,3358.5,0.29836]
[1735695432202,7.88833523,3358.6,3358.5,0.29836]
[1735695432602,3.2078,3358.6,3358.5,0.29836]
[1735695433600,3.50616,3358.6,3358.5,0.29836]
[1735695434898,3.2078,3358.6,3358.5,0.29836]
[1735695435699,9.05928916,3358.6,3358.5,0.29836]
[1735695435899,9.35764916,3358.6,3358.5,0.29836]
[1735695436898,3.50616,3358.6,3358.5,0.29836]
[1735695438806,3.2078,3358.6,3358.5,0.29836]
[1735695439105,3.50616,3358.6,3358.5,0.29836]
[1735695441105,0.29836,3358.6,3358.5,0.29836]
[1735695441308,3.50616,3358.6,3358.5,0.29836]
[1735695441507,3.83221069,3358.6,3358.5,0.29836]
[1735695441911,4.28428796,3358.6,3358.5,0.29836]
[1735695442399,3.83221069,3358.6,3358.5,0.29836]
[1735695442806,4.28430857,3358.6,3358.5,0.29836]
[1735695443010,3.98594857,3358.6,3357.8,0.74608]
[1735695443215,8.66958719,3358.6,3357.8,7.78353203]
[1735695443510,0.29839,3358.4,3358.3,0.29838]
[1735695443901,1.18289,3358.4,3358.3,0.29838]
[1735695444613,0.29843,3357.9,3357.8,0.29843]
[1735695444801,3.2078,3357.9,3357.7,7.03745203]
[1735695445108,1.18293,3357.8,3357.7,7.03745203]
[1735695445907,1.18293,3357.8,3357.6,0.29844]
[1735695445908,5.86656862,3357.8,3357.6,0.29844]
[1735695446112,0.4572,3357.7,3357.6,0.29844]
[1735695447307,5.14083862,3357.7,3357.6,0.29844]
[1735695449605,0.4572,3357.7,3357.6,0.29844]
[1735695450813,2.71432335,3357.7,3357.2,0.23981895]
[1735695451006,2.71432335,3357.7,3357.0,7.33596203]
[1735695451007,5.76341335,3357.3,3357.0,7.33596203]
[1735695451211,1.3399,3357.2,3357.1,0.2985]
[1735695451514,1.3399,3357.2,3357.0,7.33596203]
[1735695451909,1.3399,3357.2,3357.1,0.2985]
[1735695456214,0.91,3357.2,3357.1,0.2985]
[1735695457219,3.2078,3357.3,3357.2,0.29849]
[1735695458633,4.68650407,3357.4,3357.1,2.25712335]
[1735695458923,3.2078,3357.8,3357.2,0.8713]
[1735695459232,3.2078,3357.8,3357.7,0.29845]
[1735695460228,3.2078,3357.8,3357.3,0.451]
[1735695460531,3.50625,3357.8,3357.5,0.29846]
[1735695461430,3.50625,3357.8,3357.7,0.29845]
[1735695461431,3.2078,3357.8,3357.7,0.29845]
[1735695464735,8.65561407,3358.2,3358.0,0.29842]
[1735695464927,0.29841,3358.1,3358.0,0.29842]
[1735695465533,3.6707,3358.2,3357.4,2.25712335]
[1735695465734,0.29842,3358.0,3357.9,0.29843]
[1735695466034,0.29844,3357.8,3357.7,0.29844]
[1735695466226,3.50624,3357.8,3357.7,0.29844]
[1735695466428,3.2078,3357.8,3357.7,0.29844]
[1735695467033,7.89430407,3357.8,3357.7,0.29844]
[1735695467429,8.33170407,3357.8,3357.7,0.29844]
[1735695468133,8.77590407,3357.8,3357.7,0.29844]
[1735695470032,9.07434407,3357.8,3357.7,0.29844]
[1735695471433,8.77590407,3357.8,3357.7,0.29844]
[1735695472929,9.07434407,3357.8,3357.7,0.29844]
[1735695474228,4.38784,3357.8,3357.7,0.29844]
[1735695474829,4.0894,3357.8,3357.7,0.29844]
[1735695475431,4.546,3357.8,3357.7,0.29844]
[1735695481435,4.84444,3357.8,3357.7,0.29844]
[1735695485841,0.29846,3357.7,3357.6,0.29845]
[1735695487045,6.14994916,3357.7,3357.6,0.29845]
[1735695488443,5.85148916,3357.7,3357.6,0.29845]
[1735695489142,5.85148916,3357.7,3357.6,1.59075]
[1735695489747,3.2078,3357.8,3357.7,0.29845]
[1735695489945,3.2078,3357.8,3357.7,1.36562644]
[1735695491051,3.2078,3357.8,3357.7,6.04818358]
[1735695492942,3.81674667,3358.1,3358.0,0.29842]
[1735695493546,3.51832667,3358.1,3358.0,0.29842]
[1735695493946,3.81673667,3358.1,3358.0,0.29842]
[1735695496155,0.29841,3358.1,3358.0,0.29842]
[1735695496449,10.5717656,3358.2,3357.8,0.29844]
[1735695496753,0.29843,3357.9,3357.8,0.29844]
[1735695497550,6.14991916,3357.9,3357.8,0.29844]
[1735695499852,0.29843,3357.9,3357.8,0.29844]
[1735695502652,0.29843,3358.0,3357.9,0.29842]
[1735695504257,6.1677815,3358.0,3357.9,0.29842]
[1735695505152,0.29843,3358.0,3357.9,0.29842]
[1735695505351,0.29844,3357.8,3357.7,0.29844]
[1735695505659,3.50624,3357.8,3357.7,0.29844]
[1735695505858,3.2078,3357.8,3357.7,0.29844]
[1735695506052,3.2078,3357.8,3357.7,1.36561644]
[1735695506447,7.90352124,3357.8,3357.7,1.36561644]
[1735695506846,4.69572124,3357.8,3357.7,1.36561644]
[1735695508260,3.52145166,3357.9,3357.7,5.74973358]
[1735695508558,3.52145166,3357.9,3357.8,0.29844]
[1735695510257,3.81991166,3357.9,3357.8,0.29844]
[1735695510856,3.52145166,3357.9,3357.8,0.29844]
[1735695512062,3.52145166,3357.9,3357.8,0.29847]
[1735695512063,4.69572124,3357.9,3357.8,0.29847]
[1735695512760,4.99418124,3357.9,3357.8,0.29847]
[1735695513259,6.23068055,3358.0,3357.4,4.68255714]
[1735695513460,0.29849,3357.6,3357.5,0.29849]
[1735695513666,1.36566644,3357.6,3357.5,0.29849]
[1735695514262,0.29849,3357.6,3357.5,0.29849]
[1735695514962,0.65981905,3357.6,3357.5,0.29849]
[1735695516664,0.36132905,3357.6,3357.1,4.68255714]
[1735695516864,0.36132905,3357.6,3357.5,0.29849]
[1735695517566,5.0562071,3357.6,3357.5,0.29849]
[1735695518463,0.36132905,3357.6,3357.5,0.29849]
[1735695519465,0.82402905,3357.6,3357.5,0.29849]
[1735695519660,0.4627,3357.6,3357.5,0.29849]
[1735695529675,5.15605975,3357.6,3357.5,0.29849]
[1735695531877,0.4627,3357.6,3357.5,0.29849]
[1735695535379,5.15605975,3357.6,3357.5,0.29849]
[1735695536773,5.51722331,3357.6,3357.5,0.29849]
[1735695537176,5.15605975,3357.6,3357.5,0.29849]
[1735695537572,5.51717737,3357.6,3357.5,0.29849]
[1735695538178,5.15605975,3357.6,3357.5,0.29849]
[1735695539782,5.15605975,3357.6,3357.4,1.0674101]
[1735695539783,4.69335975,3357.7,3357.6,0.29848]
[1735695540081,4.69335975,3357.7,3357.6,1.3658901]
[1735695541274,2.70857939,3357.7,3357.6,6.04844724]
[1735695542182,2.34714322,3357.7,3357.6,6.04844724]
[1735695542379,4.0897,3357.8,3357.7,0.29847]
[1735695542783,0.8819,3357.8,3357.7,0.29847]
[1735695542978,0.8819,3357.8,3357.7,0.75917]
[1735695543579,0.4233,3357.8,3357.7,0.75917]
[1735695543783,4.2752101,3358.2,3357.7,0.75917]
[1735695543784,0.4514,3358.1,3358.0,0.29844]
[1735695543983,1.3466,3358.1,3358.0,0.29844]
[1735695544685,1.64503,3358.1,3358.0,0.29844]
[1735695545687,1.64503,3358.1,3357.6,1.0674101]
[1735695545688,1.3466,3358.1,3357.6,1.0674101]
[1735695545985,0.29845,3358.0,3357.9,0.29845]
[1735695546489,0.29847,3357.7,3357.6,0.29847]
[1735695546690,3.50627,3357.7,3357.6,0.29847]
[1735695547183,3.2078,3357.7,3357.6,1.3658801]
[1735695550585,7.0904664,3357.7,3357.6,1.3658801]
[1735695550778,7.5448664,3357.7,3357.6,1.3658801]
[1735695551788,8.71882959,3357.7,3357.6,1.3658801]
[1735695552487,9.01729959,3357.7,3357.6,0.29847]
[1735695554192,8.71882959,3357.7,3357.6,0.29847]
[1735695554392,4.02347069,3357.7,3357.6,0.29847]
[1735695554689,4.32194069,3357.7,3357.6,0.29847]
[1735695554990,4.02347069,3357.7,3357.6,0.29847]
[1735695555893,3.6622,3357.7,3357.6,0.29847]
[1735695562201,3.96067,3357.7,3357.6,0.29847]
[1735695564699,9.83369388,3357.7,3357.6,0.29847]
[1735695564896,10.19506328,3357.7,3357.6,0.29847]
[1735695566203,9.89659328,3357.7,3357.3,4.68255714]
[1735695566396,0.29851,3357.4,3357.3,4.68255714]
[1735695566597,0.29851,3357.4,3357.3,1.56835714]
[1735695567701,0.29855,3356.9,3356.8,7.03745203]
[1735695567902,3.50635,3356.9,3356.8,7.03745203]
[1735695568101,3.50635,3356.9,3356.8,7.33601203]
[1735695569303,3.50635,3356.9,3356.8,0.29856]
[1735695569304,8.2021714,3356.9,3356.8,0.29856]
[1735695569705,8.6615714,3356.9,3356.8,0.29856]
[1735695569906,9.1237714,3356.9,3356.8,0.29856]
[1735695570704,9.1237714,3356.9,3356.7,0.4463]
[1735695570705,0.29856,3356.8,3356.7,0.74486]
[1735695571607,8.8252214,3356.9,3356.7,0.4463]
[1735695571806,9.1237714,3356.9,3356.8,0.29856]
[1735695572007,10.30097388,3356.9,3356.8,0.29856]
[1735695572709,10.30097388,3356.9,3356.8,0.29855]
[1735695574505,4.42795,3356.9,3356.8,0.29855]
[1735695579311,4.1294,3356.9,3356.8,1.3659601]
[1735695580400,6.47345,3356.9,3356.8,1.3659601]
[1735695580808,6.47345,3356.9,3356.8,0.29855]
[1735695586505,6.772,3356.9,3356.8,0.29855]
[1735695590719,6.47345,3356.9,3356.8,0.29855]
[1735695592715,6.772,3356.9,3356.8,0.29855]
[1735695596819,4.42795,3356.9,3356.8,0.29855]
[1735695597623,0.29857,3356.8,3356.7,0.29856]
[1735695599418,0.3617239,3356.8,3356.2,0.4636]
[1735695599623,0.29858,3356.6,3356.5,0.29858]
[1735695601726,3.8159104,3356.6,3356.5,0.29858]
[1735695605231,0.29858,3356.6,3356.5,0.29858]
[1735695606130,4.68864697,3356.7,3356.2,0.431]
[1735695606332,4.98721697,3356.7,3356.6,0.29858]
[1735695608335,8.19501697,3356.7,3356.6,0.29858]
[1735695609736,3.2078,3356.7,3356.3,1.0674101]
[1735695609941,0.29858,3356.6,3356.5,0.29858]
[1735695610233,0.29861,3356.3,3356.2,0.29861]
[1735695610439,3.50641,3356.3,3356.2,0.29861]
[1735695610842,3.96001,3356.3,3356.2,0.29861]
[1735695612238,3.6614,3356.3,3356.2,0.29861]
[1735695612543,3.96,3356.3,3356.2,0.29861]
[1735695614938,3.6614,3356.3,3356.2,0.29861]
[1735695615134,3.2078,3356.3,3356.2,0.29861]
[1735695615342,7.90307726,3356.3,3356.2,0.29861]
[1735695615641,7.90307726,3356.3,3356.2,1.18771]
[1735695616742,3.2078,3356.3,3356.2,1.18771]
[1735695617750,3.2078,3356.3,3356.2,6.43511838]
[1735695617940,3.2078,3356.3,3356.2,5.97961838]
[1735695619254,6.72866646,3356.3,3356.2,0.73221]
[1735695619457,7.18226646,3356.3,3356.2,0.73221]
[1735695626450,6.72866646,3356.3,3356.2,1.7996201]
[1735695627664,3.2078,3356.3,3356.2,1.7996201]
[1735695634059,5.55475791,3356.3,3356.2,1.7996201]
[1735695636755,5.55475791,3356.3,3356.2,0.73221]
[1735695636957,5.99645791,3356.3,3356.2,0.29861]
[1735695639155,3.6495,3356.3,3356.2,0.29861]
[1735695643957,8.34477726,3356.3,3356.2,0.29861]
[1735695649662,8.34477726,3356.3,3356.2,1.3660201]
[1735695650970,3.6495,3356.3,3356.2,1.3660201]
[1735695651463,3.2078,3356.3,3356.2,1.3660201]
[1735695651667,4.69527726,3356.4,3356.3,0.29859]
[1735695651866,4.69527726,3356.4,3356.3,0.72759]
[1735695652772,4.69527726,3356.4,3356.3,3.93539]
[1735695653664,2.34902896,3356.6,3356.5,0.29857]
[1735695653864,2.34902896,3356.6,3356.5,1.3659801]
[1735695654866,2.34902896,3356.7,3356.6,0.29856]
[1735695655067,2.34902896,3356.7,3356.6,1.3659701]
[1735695657067,2.81232896,3356.7,3356.6,1.3659701]
[1735695660778,3.25612896,3356.7,3356.6,1.3659701]
[1735695662977,0.9071,3356.7,3356.6,1.3659701]
[1735695663167,1.9745101,3356.7,3356.3,7.04474639]
[1735695663372,4.2752101,3356.4,3356.3,7.34333639]
[1735695663572,3.2078,3356.4,3356.3,7.34333639]
[1735695663777,5.55520812,3356.4,3356.3,0.29859]
[1735695664171,5.55520812,3356.4,3356.3,1.18659]
[1735695664572,2.34740812,3356.4,3356.3,1.18659]
[1735695665071,2.19067344,3356.6,3356.3,10.1632101]
[1735695665277,4.70552388,3356.8,3356.7,0.29855]
[1735695665576,4.00592388,3356.8,3356.7,5.6411702]
[1735695665780,3.09193388,3356.8,3356.7,10.6411702]
[1735695665980,1.52594388,3356.8,3356.7,10.6411702]
[1735695666180,0.89820388,3356.8,3356.7,10.6411702]
[1735695666374,0.89820388,3356.8,3356.7,5.6411702]
[1735695666577,11.37427011,3357.4,3356.7,5.6411702]
[1735695666578,3.2078,3357.4,3357.3,0.2985]
[1735695666779,3.2078,3357.4,3357.3,1.3659101]
[1735695672476,3.2078,3357.4,3357.3,0.2985]
[1735695672880,3.2078,3357.4,3357.3,1.3659101]
[1735695676185,1.3391,3357.7,3357.6,0.29847]
[1735695676484,0.884,3357.7,3357.6,1.3658801]
[1735695681087,3.6366,3358.3,3357.6,1.0674101]
[1735695681289,3.6366,3358.3,3358.2,1.3658301]
[1735695682286,3.2078,3358.8,3358.7,0.29837]
[1735695683387,4.0629,3359.2,3358.6,2.25287288]
[1735695683585,0.4513,3359.1,3359.0,0.29834]
[1735695683781,0.29835,3359.0,3358.6,0.29838]
[1735695683984,3.2078,3358.7,3358.6,0.29838]
[1735695685293,0.29841,3358.4,3358.1,0.29842]
[1735695685488,3.2078,3358.2,3358.0,0.29843]
[1735695685691,0.4387,3358.1,3358.0,0.29843]
[1735695687482,0.4387,3358.1,3357.4,2.25287288]
[1735695687483,0.29844,3358.0,3357.8,0.29845]
[1735695687991,0.4212,3357.9,3357.8,0.29845]
[1735695692990,0.29847,3357.7,3357.5,0.29848]
[1735695693294,0.4299,3357.6,3357.0,10.13127627]
[1735695693499,0.4299,3357.6,3357.4,0.29848]
[1735695693690,0.72837,3357.6,3357.4,0.29848]
[1735695693892,0.4299,3357.6,3357.0,10.13127627]
[1735695694086,0.2985,3357.4,3357.2,0.29851]
[1735695694397,3.6495,3357.3,3357.2,0.29851]
[1735695706198,0.4417,3357.3,3357.2,0.29851]
[1735695706801,0.881,3357.3,3357.2,0.29851]
[1735695710202,0.4417,3357.3,3357.2,0.29851]
[1735695710403,3.2078,3357.4,3357.3,0.2985]
[1735695710603,3.2078,3357.4,3357.3,2.55137288]
[1735695713008,0.4299,3357.6,3357.5,0.29848]
[1735695716411,0.29849,3357.5,3357.4,0.29848]
[1735695716900,0.4299,3357.6,3357.0,7.66979627]
[1735695717208,0.72838,3357.6,3357.5,0.29848]
[1735695718107,0.29848,3357.5,3357.4,0.29848]
[1735695719605,0.29848,3357.5,3357.0,0.74632]
[1735695719606,0.72838,3357.6,3357.5,0.29848]
[1735695721404,0.29848,3357.5,3357.4,0.29848]
[1735695723098,0.4299,3357.6,3356.8,0.74636]
[1735695723302,0.29851,3357.2,3357.1,0.29851]
[1735695723505,0.2985,3357.3,3357.2,0.2985]
[1735695723811,0.7529,3357.3,3357.2,0.2985]
[1735695724007,3.9607,3357.3,3357.2,0.2985]
[1735695725802,0.29851,3357.2,3357.0,0.29852]
[1735695726309,0.29852,3357.1,3357.0,0.29852]
[1735695726909,0.29851,3357.2,3357.1,0.29852]
[1735695727711,3.6622,3357.3,3356.6,2.99928288]
[1735695728013,3.9607,3357.3,3356.6,2.99928288]
[1735695728408,3.6622,3357.3,3357.1,0.29851]
[1735695728611,0.29851,3357.2,3357.1,0.29851]
[1735695728809,0.29851,3357.2,3357.0,0.29852]
[1735695730208,3.6622,3357.3,3357.0,0.29852]
[1735695730407,0.29852,3357.2,3357.0,0.29852]
[1735695730808,0.29852,3357.2,3356.9,4.67060339]
[1735695731011,0.29852,3357.2,3357.1,0.29852]
[1735695732115,7.47454974,3357.3,3357.1,0.29852]
[1735695732622,0.29851,3357.2,3357.1,0.29852]
[1735695733115,7.17604974,3357.3,3357.0,4.67060339]
[1735695733419,7.47454974,3357.3,3357.1,0.29851]
[1735695734011,7.47454974,3357.3,3357.0,4.67060339]
[1735695734208,7.47454974,3357.3,3357.2,0.29851]
[1735695735222,7.17604974,3357.3,3357.2,0.29851]
[1735695735423,7.47454974,3357.3,3357.2,0.29851]
[1735695736226,7.17604974,3357.3,3357.2,0.29851]
[1735695736525,3.6622,3357.3,3357.2,0.29851]
[1735695737428,8.34069795,3357.3,3357.2,0.29851]
[1735695738934,3.6622,3357.3,3357.2,0.29851]
[1735695739922,3.6622,3357.3,3357.2,4.96911339]
[1735695741626,3.2078,3357.3,3357.2,4.96911339]
[1735695742520,3.2078,3357.3,3357.2,12.90623767]
[1735695742726,3.52347408,3357.4,3357.3,0.2985]
[1735695742926,3.52347408,3357.4,3357.3,1.36612727]
[1735695743425,3.52347408,3357.4,3357.3,0.2985]
[1735695743828,0.73368,3357.5,3357.3,5.57113428]
[1735695744028,0.4506,3357.4,3357.3,5.86963428]
[1735695745228,0.4506,3357.4,3357.3,10.5672417]
[1735695745229,3.97407408,3357.4,3357.3,10.5672417]
[1735695747333,3.97407408,3357.4,3357.3,4.99610742]
[1735695750037,3.97407408,3357.4,3357.3,10.56657894]
[1735695752124,5.12909795,3357.4,3357.3,0.2985]
[1735695755133,0.4506,3357.4,3357.3,0.2985]
[1735695756629,0.29851,3357.2,3357.1,0.29851]
[1735695756829,4.27542727,3357.3,3357.0,4.69760742]
[1735695757038,0.439,3357.1,3357.0,4.99612742]
[1735695757838,0.439,3357.1,3357.0,0.29852]
[1735695759438,3.96260145,3357.1,3357.0,5.86971437]
[1735695761640,4.26111145,3357.1,3357.0,5.86971437]
[1735695764241,3.96260145,3357.1,3357.0,5.86971437]
[1735695766443,3.96260145,3357.1,3357.0,10.56808717]
[1735695767644,5.32873872,3357.1,3357.0,5.57119437]
[1735695767844,5.32873872,3357.1,3357.0,2.45639437]
[1735695768045,5.32873872,3357.1,3357.0,1.05759437]
[1735695768345,5.32873872,3357.1,3357.0,0.35819437]
[1735695768746,5.32873872,3357.1,3356.7,9.38212452]
[1735695768747,0.29854,3356.8,3356.7,4.69882064]
[1735695768948,4.57396727,3356.8,3356.7,4.69882064]
[1735695769248,4.57396727,3356.8,3356.7,4.99737064]
[1735695769547,3.50634,3356.8,3356.7,4.99737064]
[1735695769749,3.50634,3356.8,3356.7,0.29855]
[1735695771038,3.2078,3356.8,3356.7,0.29855]
[1735695771244,3.96184,3356.8,3356.7,1.36617727]
[1735695771947,3.6633,3356.8,3356.7,1.36617727]
[1735695772249,7.18510951,3356.8,3356.7,1.36617727]
[1735695773353,3.6633,3356.8,3356.7,1.36617727]
[1735695773949,3.6633,3356.8,3356.7,0.29855]
[1735695774148,3.96184,3356.8,3356.7,0.29855]
[1735695774849,8.65907185,3356.8,3356.7,0.29855]
[1735695775349,8.36053185,3356.8,3356.6,0.4605]
[1735695775547,0.29855,3356.7,3356.6,0.75905]
[1735695779750,0.29857,3356.5,3356.3,0.2981]
[1735695779953,0.4541,3356.6,3356.3,0.2981]
[1735695780251,0.29857,3356.4,3356.3,0.59668]
[1735695780649,3.8181876,3356.4,3356.3,0.59668]
[1735695781954,0.29857,3356.4,3356.3,0.59668]
[1735695782850,0.29857,3356.5,3356.4,0.29857]
[1735695783855,0.29857,3356.4,3356.3,1.66430727]
[1735695786854,0.29857,3356.4,3356.3,0.59668]
[1735695789361,2.34479753,3356.5,3356.3,0.2981]
[1735695789654,0.29857,3356.4,3356.3,0.59667]
[1735695789860,2.79889753,3356.6,3356.3,0.2981]
[1735695790057,0.29857,3356.5,3356.4,0.29857]
[1735695790258,2.79889753,3356.6,3356.5,0.29857]
[1735695790458,2.34479753,3356.6,3356.5,1.36619727]
[1735695791263,2.34479753,3356.7,3356.6,0.29856]
[1735695791658,2.34479753,3356.7,3356.6,0.75326]
[1735695792859,6.00809753,3356.8,3356.6,0.4547]
[1735695793060,6.00809753,3356.8,3356.7,1.36617727]
[1735695793061,5.55259753,3356.8,3356.7,1.36617727]
[1735695794262,3.2078,3356.8,3356.7,1.36617727]
[1735695796060,2.34479753,3356.9,3356.8,0.29854]
[1735695796265,2.34475936,3357.1,3357.0,0.29852]
[1735695796464,2.34475936,3357.1,3357.0,1.36614727]
[1735695796665,2.34475936,3357.1,3357.0,0.29852]
[1735695798154,3.2078,3357.3,3357.0,4.69882064]
[1735695798360,3.2078,3357.3,3357.2,1.36612727]
[1735695803361,3.50629,3357.3,3357.2,0.2985]
[1735695803764,3.50629,3357.3,3357.0,1.06762727]
[1735695803965,0.916,3357.2,3357.1,0.29851]
[1735695804765,1.2145,3357.2,3357.1,0.29851]
[1735695806869,0.916,3357.2,3357.1,0.29851]
[1735695807672,0.29853,3357.1,3357.0,0.29853]
[1735695808673,0.29853,3357.1,3356.9,0.29854]
[1735695809077,0.29853,3357.1,3357.0,0.29854]
[1735695810366,0.29855,3357.0,3356.9,0.29854]
[1735695810569,1.06762727,3357.0,3356.6,4.69882064]
[1735695810876,3.50637,3356.7,3356.6,4.69882064]
[1735695811373,4.35377,3356.7,3356.6,4.69882064]
[1735695811778,4.35377,3356.7,3356.5,0.29858]
[1735695811779,8.75243185,3356.7,3356.5,0.29858]
[1735695811977,0.72117,3356.6,3356.5,0.29858]
[1735695813071,0.2986,3356.4,3356.3,0.2986]
[1735695813490,8.75243185,3356.7,3356.3,1.06762727]
[1735695813675,0.29858,3356.6,3356.5,0.29858]
[1735695814080,4.99581185,3356.6,3356.5,0.29858]
[1735695814586,4.69723185,3356.6,3356.3,1.06762727]
[1735695814782,0.29859,3356.5,3356.4,0.29859]
[1735695814984,4.69723185,3356.6,3356.3,1.06762727]
[1735695815182,8.75243185,3356.7,3356.3,1.06762727]
[1735695815385,8.75243185,3356.7,3356.6,0.29858]
[1735695815386,9.05100185,3356.7,3356.6,0.29858]
[1735695815983,0.29858,3356.6,3356.5,0.29858]
[1735695816486,8.75243185,3356.7,3356.3,1.06762727]
[1735695816681,0.29858,3356.6,3356.5,1.36620727]
[1735695818085,0.29858,3356.6,3356.5,0.29858]
[1735695818286,0.29858,3356.6,3356.4,0.29858]
[1735695818487,0.29858,3356.6,3356.5,0.29858]
[1735695819890,0.29859,3356.5,3356.4,0.29859]
[1735695821892,4.35377,3356.7,3356.6,0.29858]
[1735695822089,4.0552,3356.7,3356.6,1.36620727]
[1735695824193,0.8474,3356.7,3356.6,1.36620727]
[1735695826586,3.2078,3356.8,3356.6,1.06762727]
[1735695826791,3.2078,3356.8,3356.7,0.73657]
[1735695828285,3.50636,3356.8,3356.7,0.73657]
[1735695829493,3.2078,3356.8,3356.7,0.73657]
[1735695829995,3.50636,3356.8,3356.7,0.73657]
[1735695833491,3.50636,3356.8,3356.6,1.36619727]
[1735695833492,0.29857,3356.7,3356.6,1.36619727]
[1735695835690,0.29857,3356.7,3356.6,0.29857]
[1735695840092,4.72452727,3356.8,3356.3,1.06762727]
[1735695840298,3.50639,3356.4,3356.3,1.06762727]
[1735695840794,0.2986,3356.3,3356.2,4.69882064]
[1735695841392,3.2078,3356.4,3356.1,1.82963727]
[1735695841593,0.2986,3356.2,3356.1,1.82963727]
[1735695844004,3.5064,3356.2,3356.1,1.82963727]
[1735695845897,3.5064,3356.2,3355.9,1.06762727]
[1735695845898,3.2078,3356.2,3355.9,1.06762727]
[1735695846099,0.29864,3355.8,3355.7,4.69882064]
[1735695846407,0.29864,3355.8,3355.7,2.28322064]
[1735695846408,4.57406727,3355.8,3355.7,2.28322064]
[1735695847110,9.57406727,3355.8,3355.7,1.58372064]
[1735695847296,9.57406727,3355.8,3355.0,4.94788789]
[1735695847297,9.27542727,3355.8,3355.0,4.94788789]
[1735695847501,4.57412727,3355.1,3355.0,4.94788789]
[1735695848306,3.5065,3355.1,3355.0,4.94788789]
[1735695848507,3.2078,3355.1,3354.8,0.29873]
[1735695848700,0.29871,3355.0,3354.8,0.29873]
[1735695848907,3.2078,3355.1,3354.9,0.29871]
[1735695849097,3.5065,3355.1,3354.9,0.29871]
[1735695849303,3.5065,3355.1,3355.0,0.4629]
[1735695849603,3.5065,3355.1,3355.0,0.76161]
[1735695850596,3.5065,3355.1,3355.0,0.4629]
[1735695851807,3.5065,3355.1,3355.0,0.76161]
[1735695852114,3.2078,3355.1,3355.0,0.76161]
[1735695852508,3.2078,3355.1,3355.0,3.02009284]
[1735695853505,3.50647,3355.5,3355.3,0.29868]
[1735695853707,3.50647,3355.5,3355.4,0.72288]
[1735695854011,3.2078,3355.5,3355.4,0.72288]
[1735695864816,3.50647,3355.5,3355.4,0.4242]
[1735695865214,0.29868,3355.4,3355.2,0.29869]
[1735695865416,0.29869,3355.3,3355.2,0.29869]
[1735695865617,3.2078,3355.5,3355.1,0.9216]
[1735695865918,0.29869,3355.2,3355.1,1.2203]
[1735695866219,0.2987,3355.1,3355.0,0.4629]
[1735695866416,3.5065,3355.1,3355.0,0.76161]
[1735695875325,3.2078,3355.1,3355.0,0.76161]
[1735695878823,3.5065,3355.1,3355.0,0.76161]
[1735695887528,0.2987,3355.1,3355.0,0.76161]
[1735695887930,3.5065,3355.1,3355.0,0.76161]
[1735695889029,3.5065,3355.1,3355.0,0.4629]
[1735695889631,3.5065,3355.1,3355.0,0.896]
[1735695890134,7.01654801,3355.1,3355.0,0.896]
[1735695891037,3.5065,3355.1,3355.0,0.896]
[1735695891234,4.57553197,3355.1,3355.0,0.896]
[1735695897932,0.29873,3354.8,3354.7,0.4415]
[1735695898136,1.36776197,3354.8,3354.7,0.4415]
[1735695900941,6.06392875,3354.8,3354.7,0.4415]
[1735695902043,6.06392875,3354.8,3354.7,0.74024]
[1735695902248,4.99489678,3354.8,3354.7,0.4415]
[1735695903247,6.06392875,3354.8,3354.7,0.4415]
[1735695906245,4.99489678,3354.8,3354.7,0.4415]
[1735695906843,4.69616678,3354.8,3354.7,1.80927197]
[1735695908437,4.69616678,3354.8,3354.7,0.74024]
[1735695909334,3.82161876,3354.9,3354.7,0.4415]
[1735695909540,3.82161876,3354.9,3354.8,0.29873]
[1735695910746,0.29872,3354.9,3354.8,0.29873]
[1735695911339,4.69616678,3355.0,3354.7,0.4415]
[1735695911541,1.36776197,3354.8,3354.7,0.4415]
[1735695911947,4.89315292,3354.8,3354.7,0.4415]
[1735695912647,0.29875,3354.6,3354.5,7.50139753]
[1735695912848,4.57558197,3354.6,3354.5,7.50139753]
[1735695913250,4.57558197,3354.6,3354.5,0.4556]
[1735695913446,4.27683197,3354.6,3354.2,0.8956]
[1735695913746,0.29877,3354.3,3354.2,1.64478]
[1735695914253,0.29877,3354.3,3354.2,1.346]
[1735695916148,0.29877,3354.3,3354.2,1.64478]
[1735695916747,4.70063533,3354.4,3354.2,1.64478]
[1735695916945,4.99940533,3354.4,3354.2,1.64478]
[1735695917452,3.8223738,3354.3,3354.2,1.64478]
[1735695918546,3.5236038,3354.3,3354.2,1.64478]
[1735695918951,3.8223738,3354.3,3354.2,1.64478]
[1735695919947,3.5236038,3354.3,3354.2,1.64478]
[1735695920351,3.8223738,3354.3,3354.2,1.64478]
[1735695921951,3.5236038,3354.3,3354.2,1.64478]
[1735695922253,3.5236038,3354.4,3354.3,0.29877]
[1735695923355,2.1242038,3354.4,3354.3,0.29877]